lending/lending_fUSD_20251121
["ID","MTS","AMOUNT","RATE_DAILY","PERIOD"]
[394559268,1763710231894,-151.0,0.00016942,2]
[394559270,1763710231903,-234.39,0.00016967,2]
[394559272,1763710231913,-500.0,0.00016973,2]
[394559274,1763710231923,-9748.10913207,0.00016986,2]
[394559276,1763710232523,-24796.83086793,0.00016986,2]
[394559277,1763710232534,-163.8,0.0001699,2]
[394559278,1763710232543,-288.59436364,0.00016997,2]
[394559279,1763710232554,-440.35879256,0.00016999,2]
[394559280,1763710232564,-500.0,0.00016999,2]
[394559281,1763710232574,-188.71363686,0.00016999,2]
[394559282,1763710232584,-621.06241884,0.00016999,2]
[394559283,1763710232596,-500.0,0.00016999,2]
[394559284,1763710232607,-300.0,0.00016999,2]
[394559285,1763710232617,-40571.88701474,0.00017,2]
[394559286,1763710232640,-753.4551024,0.00017,2]
[394559287,1763710232654,-1962.6,0.00017,2]
[394559288,1763710232667,-863.87189185,0.00017,2]
[394559289,1763710232680,-2566.0635,0.00017,2]
[394559290,1763710237429,-151.0,0.0001692,2]
[394559291,1763710237438,-110.00000004,0.00016999,2]
[394559292,1763710237534,-389.99999996,0.00016999,2]
[394559293,1763710237543,-1840672.98395428,0.00017,2]
[394559294,1763710237555,-350.88190392,0.00017,2]
[394559428,1763710239506,-262.52281514,0.00017,2]
[394559430,1763710239517,-1367.64889107,0.00017,2]
[394559431,1763710239647,-1388148.24064086,0.00017,2]
[394559432,1763710239689,-686.9985974,0.00017,2]
[394559433,1763710239737,-1682.90907406,0.00017,2]
[394559434,1763710239750,-278.97857106,0.00017,2]
[394559435,1763710239838,-4531.760407,0.00017,2]
[394559531,1763710245514,-500.0,0.00016899,2]
[394559532,1763710245525,-500.0,0.00016899,2]
[394559533,1763710245535,-7545.98822838,0.00017,2]
[394559534,1763710245795,-317.8499993,0.00017,2]
[394559535,1763710245807,-777.08,0.00017,2]
[394559536,1763710245819,-276.16733783,0.00017,2]
[394559537,1763710245831,-1454.85915529,0.00017,2]
[394559564,1763710246217,-2133.325,0.00017,2]
[394559567,1763710246228,-5540.0,0.00017,2]
[394559639,1763710340908,451.21004971,0.00017,30]
[394559640,1763710342166,500.0,0.00017,30]
[394559642,1763710635505,262.734,0.00017,30]
[394559643,1763710646123,578.28566586,0.00017,30]
[394559645,1763710693121,1135.95,0.00016001,2]
[394559650,1763710812970,5518.0,0.000147,5]
[394559662,1763710843139,808.0,0.000147,5]
[394559664,1763710863362,150.0,0.00015989,2]
[394559665,1763710863763,150.0,0.00015989,120]
[394559667,1763710945590,327.7799999,0.00017,30]
[394559669,1763710988126,1853.25,7.945e-05,2]
[394559670,1763710988152,9683.55977,7.945e-05,2]
[394559671,1763711063345,316.45023,7.945e-05,2]
[394559672,1763711063758,512.93234549,7.945e-05,2]
[394559673,1763711066075,999.0,0.00015932,3]
[394559677,1763711118801,150.0,0.00015288,2]
[394559678,1763711118980,150.0,0.00015288,2]
[394559679,1763711119107,150.0,0.00015288,2]
[394559680,1763711127475,150.0,0.00015288,2]
[394559681,1763711127543,150.0,0.00015854,2]
[394559682,1763711128009,150.0,0.00015288,2]
[394559683,1763711128171,150.0,0.00015288,2]
[394559684,1763711128973,267.2932324,0.00015288,2]
[394559685,1763711134379,150.0,0.00015288,2]
[394559686,1763711136212,150.0,0.00015288,2]
[394559688,1763711138471,224.70035689,0.00015288,2]
[394559690,1763711140797,150.0,0.00015288,2]
[394559693,1763711143476,150.0,0.00015288,2]
[394559695,1763711182399,703.79,0.000159,2]
[394559697,1763711217553,170.0,6e-07,2]
[394559698,1763711222790,272.0,0.00017,30]
[394559710,1763711290059,5472.29406522,0.00015887,2]
[394559711,1763711290084,10000.01,0.00015887,2]
[394559712,1763711290113,10000.01,0.00015887,2]
[394559713,1763711290139,9502.81593478,0.00015887,2]
[394559714,1763711299737,338.85484241,0.00016037,2]
[394559716,1763711374903,158.33922281,0.0001603,2]
[394559717,1763711374927,180.5156196,0.0001603,2]
[394559754,1763711431840,-176.03673408,0.00016122,2]
[394559756,1763711431850,-300.0,0.00016122,2]
[394559758,1763711431861,-1600.0,0.00016122,2]
[394559760,1763711431871,-250.0,0.0001613,2]
[394559763,1763711431881,-150.0,0.00016137,2]
[394559765,1763711431891,-150.0,0.00016137,2]
[394559766,1763711431900,-300.0,0.00016186,2]
[394559768,1763711431911,-166.67,0.00016339,2]
[394559769,1763711431920,-150.0,0.0001642,2]
[394559770,1763711431931,-724.66828594,0.00016438,2]
[394559771,1763711431941,-200.0,0.000166,6]
[394559772,1763711431951,-2970.36,0.000166,2]
[394559773,1763711431961,-1000.0,0.00016611,2]
[394559774,1763711431971,-1200.0,0.00016655,2]
[394559775,1763711431981,-300.0,0.00016656,2]
[394559776,1763711431996,-300.0,0.00016656,2]
[394559777,1763711432006,-300.0,0.00016656,2]
[394559778,1763711432016,-300.0,0.00016656,2]
[394559779,1763711432027,-300.0,0.00016656,2]
[394559780,1763711432038,-1200.0,0.00016657,2]
[394559781,1763711432048,-150.0,0.000167,2]
[394559782,1763711432058,-500.0,0.000167,6]
[394559783,1763711432067,-173.0,0.00016745,2]
[394559784,1763711432077,-299.91,0.00016778,2]
[394559785,1763711432087,-152.0,0.00016795,2]
[394559786,1763711432097,-150.0,0.000168,2]
[394559787,1763711432108,-700.0,0.000168,6]
[394559788,1763711432118,-300.0,0.000168,2]
[394559789,1763711432128,-300.0,0.000168,2]
[394559790,1763711432138,-150.0,0.000168,2]
[394559792,1763711432148,-249.0,0.00016836,2]
[394559794,1763711432157,-243.0,0.00016855,2]
[394559796,1763711432166,-410.00915188,0.00016886,2]
[394559798,1763711432176,-7835.8781,0.00016886,2]
[394559800,1763711432187,-151.0,0.00016889,2]
[394559802,1763711432197,-151.0,0.0001689,2]
[394559804,1763711432206,-151.0,0.00016892,2]
[394559806,1763711432216,-550.0,0.00016896,2]
[394559808,1763711432225,-278.57874553,0.00016898,2]
[394559810,1763711432235,-2744.4002,0.00016899,2]
[394559812,1763711432250,-8406.4408,0.00016899,2]
[394559814,1763711432260,-522.2985645,0.00016899,2]
[394559816,1763711432269,-5600.08383131,0.00016899,2]
[394559818,1763711432279,-1000.0,0.000169,6]
[394559820,1763711432288,-354.76136669,0.000169,2]
[394559822,1763711432297,-2187.7887,0.000169,2]
[394559824,1763711432308,-1000.0,0.000169,2]
[394559826,1763711432319,-2500.0,0.000169,2]
[394559828,1763711432328,-215.970406,0.000169,2]
[394559829,1763711432338,-1727.21994311,0.000169,2]
[394559831,1763711432348,-952.2007,0.000169,2]
[394559833,1763711432358,-397.32746224,0.000169,2]
[394559835,1763711432369,-778.86747298,0.000169,2]
[394559837,1763711432379,-179.74662956,0.000169,2]
[394559839,1763711432389,-988.5,0.00016922,2]
[394559841,1763711432399,-151.0,0.00016962,2]
[394559843,1763711432410,-151.0,0.00016962,2]
[394559845,1763711432421,-151.0,0.00016962,2]
[394559847,1763711432430,-151.0,0.00016962,2]
[394559849,1763711432439,-151.0,0.00016962,2]
[394559851,1763711432449,-151.0,0.00016962,2]
[394559853,1763711432459,-175.1144134,0.00016962,2]
[394559855,1763711432469,-1393.64888,0.00016965,2]
[394559857,1763711432478,-500.0,0.00016973,2]
[394559885,1763711432493,-501.13130562,0.00016973,2]
[394559892,1763711432734,-500.0,0.00016973,2]
[394559894,1763711432749,-500.0,0.00016973,2]
[394559897,1763711432760,-500.81426442,0.00016973,2]
[394559899,1763711432773,-501.21941397,0.00016973,2]
[394559905,1763711432784,-500.0,0.00016973,2]
[394559908,1763711432794,-200.66593972,0.00016973,2]
[394559913,1763711432804,-549.96908235,0.00016973,2]
[394559915,1763711432814,-500.0,0.00016973,2]
[394559918,1763711432825,-601.00917912,0.00016973,2]
[394559921,1763711432834,-500.0,0.00016973,2]
[394559924,1763711432843,-500.0,0.00016973,2]
[394559926,1763711432853,-608.62593854,0.00016973,2]
[394559928,1763711432863,-491.81969162,0.00016973,2]
[394559930,1763711432872,-508.70074188,0.00016973,2]
[394559932,1763711432881,-500.0,0.00016973,2]
[394559934,1763711432891,-502.15487194,0.00016973,2]
[394559936,1763711432901,-500.0,0.00016973,2]
[394559938,1763711432911,-500.0,0.00016973,2]
[394559940,1763711432920,-150.0,0.00016986,2]
[394559942,1763711432930,-150.0,0.00016986,2]
[394559943,1763711432940,-150.0,0.00016986,2]
[394559944,1763711432950,-150.0,0.00016986,2]
[394559945,1763711432960,-150.0,0.00016986,2]
[394559946,1763711432969,-150.0,0.00016986,2]
[394559947,1763711432979,-150.0,0.00016986,2]
[394559948,1763711432988,-150.0,0.00016986,2]
[394559949,1763711432999,-756.76,0.00016989,3]
[394559950,1763711433009,-11784.7,0.0001699,2]
[394559951,1763711433020,-8865.31522616,0.0001699,2]
[394559953,1763711433033,-1254.41808677,0.0001699,2]
[394559957,1763711433304,-1664.96668707,0.0001699,2]
[394559958,1763711433315,-163.75,0.0001699,2]
[394559959,1763711433325,-190.50462346,0.0001699,2]
[394559960,1763711433335,-928.73369947,0.0001699,2]
[394559961,1763711433347,-71.26630053,0.0001699,2]
[394559962,1763711433356,-736.67,0.00016993,2]
[394559963,1763711433366,-552.44101477,0.00016993,2]
[394559964,1763711433375,-500.0,0.00016993,2]
[394559965,1763711433385,-500.0,0.00016993,2]
[394559966,1763711433394,-500.0,0.00016993,2]
[394559967,1763711433404,-500.0,0.00016993,2]
[394559968,1763711433413,-500.0,0.00016993,2]
[394559969,1763711433423,-287.70953484,0.00016993,2]
[394559970,1763711433432,-500.0,0.00016993,2]
[394559971,1763711433442,-500.0,0.00016993,2]
[394559972,1763711433453,-500.0,0.00016993,2]
[394559973,1763711433463,-493.91001127,0.00016993,2]
[394559974,1763711433473,-208.00313859,0.00016993,2]
[394559975,1763711433497,-19.45974363,0.00016993,2]
[394559976,1763711433506,-500.0,0.00016993,2]
[394559977,1763711433516,-500.0,0.00016993,2]
[394559978,1763711433525,-500.0,0.00016993,2]
[394559979,1763711433535,-500.0,0.00016993,2]
[394559980,1763711433545,-500.0,0.00016993,2]
[394559981,1763711433554,-500.0,0.00016993,2]
[394559982,1763711433564,-344.72991618,0.00016993,2]
[394559983,1763711433574,-139.33527071,0.00016993,2]
[394559984,1763711433588,-360.66472929,0.00016993,2]
[394559985,1763711433598,-500.0,0.00016993,2]
[394559986,1763711433608,-500.0,0.00016993,2]
[394559987,1763711433618,-500.0,0.00016993,2]
[394559988,1763711433628,-500.0,0.00016993,2]
[394559989,1763711433638,-500.0,0.00016993,2]
[394559990,1763711433647,-500.0,0.00016993,2]
[394559991,1763711433659,-500.0,0.00016993,2]
[394559992,1763711433674,-500.0,0.00016993,2]
[394559993,1763711433683,-500.0,0.00016993,2]
[394559994,1763711433693,-500.0,0.00016993,2]
[394559995,1763711433703,-500.0,0.00016993,2]
[394559996,1763711433713,-250.00000004,0.00016993,2]
[394559997,1763711433723,-500.0,0.00016993,2]
[394559998,1763711433732,-556.80520905,0.00016993,2]
[394559999,1763711433746,-556.80520905,0.00016993,2]
[394560000,1763711433757,-556.80520905,0.00016993,2]
[394560001,1763711433767,-556.80520905,0.00016993,2]
[394560002,1763711433777,-556.80520905,0.00016993,2]
[394560003,1763711433787,-556.80520905,0.00016993,2]
[394560004,1763711433797,-556.80520905,0.00016993,2]
[394560005,1763711433808,-556.80520905,0.00016993,2]
[394560006,1763711433818,-556.80520905,0.00016993,2]
[394560007,1763711433828,-556.80520905,0.00016993,2]
[394560008,1763711433838,-556.80520905,0.00016993,2]
[394560009,1763711433847,-556.80520905,0.00016993,2]
[394560010,1763711433857,-556.80520905,0.00016993,2]
[394560011,1763711433867,-556.80520905,0.00016993,2]
[394560012,1763711433876,-556.80520905,0.00016993,2]
[394560013,1763711433886,-556.80520905,0.00016993,2]
[394560014,1763711433896,-556.80520905,0.00016993,2]
[394560015,1763711433906,-556.80520905,0.00016993,2]
[394560016,1763711433915,-556.80520905,0.00016993,2]
[394560017,1763711433925,-556.80520905,0.00016993,2]
[394560018,1763711433934,-556.80520905,0.00016993,2]
[394560019,1763711433944,-556.80520905,0.00016993,2]
[394560020,1763711433954,-556.80520905,0.00016993,2]
[394560021,1763711433964,-556.80520905,0.00016993,2]
[394560022,1763711433973,-556.80520905,0.00016993,2]
[394560023,1763711433984,-556.80520905,0.00016993,2]
[394560024,1763711433996,-556.80520905,0.00016993,2]
[394560025,1763711434006,-556.80520905,0.00016993,2]
[394560026,1763711434016,-556.80520905,0.00016993,2]
[394560027,1763711434026,-556.80520905,0.00016993,2]
[394560028,1763711434036,-556.80520905,0.00016993,2]
[394560029,1763711434046,-556.80520905,0.00016993,2]
[394560030,1763711434056,-556.80520905,0.00016993,2]
[394560031,1763711434066,-556.80520905,0.00016993,2]
[394560032,1763711434075,-556.80520905,0.00016993,2]
[394560033,1763711434085,-556.80520905,0.00016993,2]
[394560034,1763711434095,-556.80520905,0.00016993,2]
[394560035,1763711434104,-556.80520905,0.00016993,2]
[394560036,1763711434115,-556.80520905,0.00016993,2]
[394560037,1763711434124,-556.80520905,0.00016993,2]
[394560038,1763711434134,-556.80520905,0.00016993,2]
[394560039,1763711434144,-551.23715695,0.00016993,2]
[394560040,1763711434153,-551.23715695,0.00016993,2]
[394560041,1763711434163,-551.23715695,0.00016993,2]
[394560042,1763711434172,-551.23715695,0.00016993,2]
[394560043,1763711434182,-551.23715695,0.00016993,2]
[394560044,1763711434193,-489.53593487,0.00016993,2]
[394560045,1763711434206,-61.70122208,0.00016993,2]
[394560046,1763711434216,-551.23715695,0.00016993,2]
[394560047,1763711434225,-551.23715695,0.00016993,2]
[394560048,1763711434235,-551.23715695,0.00016993,2]
[394560049,1763711434248,-551.23715695,0.00016993,2]
[394560050,1763711434258,-551.23715695,0.00016993,2]
[394560051,1763711434267,-551.23715695,0.00016993,2]
[394560052,1763711434277,-551.23715695,0.00016993,2]
[394560053,1763711434287,-551.23715695,0.00016993,2]
[394560054,1763711434296,-551.23715695,0.00016993,2]
[394560055,1763711434306,-447.16436539,0.00016993,2]
[394560056,1763711434318,-104.07279156,0.00016993,2]
[394560057,1763711434328,-551.23715695,0.00016993,2]
[394560058,1763711434338,-551.23715695,0.00016993,2]
[394560059,1763711434348,-551.23715695,0.00016993,2]
[394560060,1763711434358,-551.23715695,0.00016993,2]
[394560061,1763711434368,-551.23715695,0.00016993,2]
[394560062,1763711434378,-551.23715695,0.00016993,2]
[394560063,1763711434387,-245.25676674,0.00016993,2]
[394560064,1763711434399,-305.98039021,0.00016993,2]
[394560065,1763711434409,-286.79023624,0.00016993,2]
[394560066,1763711434482,-264.44692071,0.00016993,2]
[394560067,1763711434495,-7.11629529,0.00016993,2]
[394560068,1763711434507,-251.088,0.00016993,2]
[394560069,1763711434519,-293.03286166,0.00016993,2]
[394560070,1763711434529,-551.23715695,0.00016993,2]
[394560071,1763711434539,-551.23715695,0.00016993,2]
[394560072,1763711434549,-551.23715695,0.00016993,2]
[394560073,1763711434558,-551.23715695,0.00016993,2]
[394560074,1763711434568,-551.23715695,0.00016993,2]
[394560075,1763711434577,-1000.0,0.00016995,2]
[394560076,1763711434589,-477.88929844,0.00016995,2]
[394560077,1763711434599,-5616.6929027,0.00016996,2]
[394560078,1763711434608,-6531.59915245,0.00016996,2]
[394560079,1763711434621,-491.63064476,0.00016996,2]
[394560080,1763711434632,-1268.7675,0.00016996,2]
[394560081,1763711434644,-6897.32282638,0.00016996,2]
[394560082,1763711434656,-489.16164181,0.00016996,2]
[394560083,1763711434666,-368.5713257,0.00016996,2]
[394560084,1763711434677,-21526.4720401,0.00016996,2]
[394560085,1763711434688,-151.0,0.00016997,2]
[394560086,1763711434698,-1285.06658655,0.00016999,2]
[394560087,1763711434708,-22759.58152192,0.00016999,2]
[394560088,1763711434719,-500.0,0.00016999,2]
[394560089,1763711434729,-500.0,0.00016999,2]
[394560090,1763711434738,-500.0,0.00016999,2]
[394560091,1763711434751,-536.59383314,0.00016999,2]
[394560092,1763711434764,-500.0,0.00016999,2]
[394560093,1763711434773,-500.0,0.00016999,2]
[394560094,1763711434783,-500.0,0.00016999,2]
[394560095,1763711434793,-184.87800671,0.00016999,2]
[394560096,1763711434802,-500.0,0.00016999,2]
[394560097,1763711434812,-500.78799019,0.00016999,2]
[394560098,1763711434821,-500.0,0.00016999,2]
[394560099,1763711434831,-500.0,0.00016999,2]
[394560100,1763711434840,-500.0,0.00016999,2]
[394560101,1763711434850,-500.0,0.00016999,2]
[394560102,1763711434859,-500.0,0.00016999,2]
[394560103,1763711434869,-506.43849321,0.00016999,2]
[394560104,1763711434878,-535.46566359,0.00016999,2]
[394560105,1763711434888,-500.0,0.00016999,2]
[394560106,1763711434897,-500.0,0.00016999,2]
[394560107,1763711434907,-500.0,0.00016999,2]
[394560108,1763711434926,-500.0,0.00016999,2]
[394560109,1763711434938,-500.0,0.00016999,2]
[394560110,1763711434948,-500.0,0.00016999,2]
[394560111,1763711434958,-500.0,0.00016999,2]
[394560112,1763711434969,-500.0,0.00016999,2]
[394560113,1763711434980,-500.0,0.00016999,2]
[394560114,1763711434989,-260.901587,0.00016999,2]
[394560115,1763711435002,-300.0,0.00016999,2]
[394560116,1763711435012,-500.0,0.00016999,2]
[394560117,1763711435023,-500.0,0.00016999,2]
[394560118,1763711435033,-500.0,0.00016999,2]
[394560119,1763711435044,-500.0,0.00016999,2]
[394560120,1763711435054,-500.0,0.00016999,2]
[394560121,1763711435064,-500.0,0.00016999,2]
[394560122,1763711435074,-500.0,0.00016999,2]
[394560123,1763711435084,-500.0,0.00016999,2]
[394560124,1763711435094,-500.0,0.00016999,2]
[394560125,1763711435104,-537.3881987,0.00016999,2]
[394560126,1763711435114,-704.99,0.00016999,2]
[394560127,1763711435123,-704.99,0.00016999,2]
[394560128,1763711435132,-704.99,0.00016999,2]
[394560129,1763711435142,-704.99,0.00016999,2]
[394560130,1763711435151,-500.0,0.00016999,2]
[394560131,1763711435161,-500.0,0.00016999,2]
[394560132,1763711435170,-500.0,0.00016999,2]
[394560133,1763711435180,-407.62527131,0.00016999,2]
[394560134,1763711435190,-704.99,0.00016999,2]
[394560135,1763711435199,-704.99,0.00016999,2]
[394560136,1763711435208,-704.99,0.00016999,2]
[394560137,1763711435218,-704.99,0.00016999,2]
[394560138,1763711435227,-704.99,0.00016999,2]
[394560139,1763711435237,-704.99,0.00016999,2]
[394560140,1763711435249,-704.99,0.00016999,2]
[394560141,1763711435258,-704.99,0.00016999,2]
[394560142,1763711435267,-704.99,0.00016999,2]
[394560143,1763711435276,-704.99,0.00016999,2]
[394560144,1763711435286,-704.99,0.00016999,2]
[394560145,1763711435299,-940.96,0.00016999,2]
[394560146,1763711435308,-940.96,0.00016999,2]
[394560147,1763711435318,-940.96,0.00016999,2]
[394560148,1763711435327,-940.96,0.00016999,2]
[394560149,1763711435336,-940.96,0.00016999,2]
[394560150,1763711435346,-940.96,0.00016999,2]
[394560151,1763711435356,-940.96,0.00016999,2]
[394560152,1763711435365,-940.96,0.00016999,2]
[394560153,1763711435375,-940.96,0.00016999,2]
[394560154,1763711435384,-940.96,0.00016999,2]
[394560155,1763711435394,-940.96,0.00016999,2]
[394560156,1763711435403,-940.96,0.00016999,2]
[394560157,1763711435412,-940.96,0.00016999,2]
[394560158,1763711435422,-940.96,0.00016999,2]
[394560159,1763711435431,-500.0,0.00016999,2]
[394560160,1763711435441,-500.0,0.00016999,2]
[394560161,1763711435451,-500.0,0.00016999,2]
[394560162,1763711435460,-500.0,0.00016999,2]
[394560163,1763711435469,-500.0,0.00016999,2]
[394560164,1763711435479,-500.0,0.00016999,2]
[394560165,1763711435497,-500.0,0.00016999,2]
[394560166,1763711435516,-500.0,0.00016999,2]
[394560167,1763711435527,-500.0,0.00016999,2]
[394560168,1763711435538,-500.0,0.00016999,2]
[394560169,1763711435548,-500.0,0.00016999,2]
[394560170,1763711435558,-500.0,0.00016999,2]
[394560171,1763711435567,-500.0,0.00016999,2]
[394560172,1763711435577,-384.394045,0.00016999,2]
[394560173,1763711435673,-115.605955,0.00016999,2]
[394560174,1763711435686,-500.0,0.00016999,2]
[394560175,1763711435701,-515.01217463,0.00016999,2]
[394560176,1763711435713,-500.0,0.00016999,2]
[394560177,1763711435723,-500.0,0.00016999,2]
[394560178,1763711435734,-500.0,0.00016999,2]
[394560179,1763711435748,-500.0,0.00016999,2]
[394560180,1763711435759,-500.0,0.00016999,2]
[394560181,1763711435770,-500.0,0.00016999,2]
[394560182,1763711435779,-500.0,0.00016999,2]
[394560183,1763711435790,-500.0,0.00016999,2]
[394560184,1763711435800,-236.84807179,0.00016999,2]
[394560185,1763711435810,-500.0,0.00016999,2]
[394560186,1763711436095,-444.40816343,0.00016999,2]
[394560187,1763711436130,-500.0,0.00016999,2]
[394560188,1763711436140,-500.0,0.00016999,2]
[394560189,1763711436150,-528.94734679,0.00016999,2]
[394560190,1763711436160,-64034.89457052,0.00017,2]
[394560191,1763711436172,-14766.41091489,0.00017,2]
[394560231,1763711438611,-151.0,0.00016888,2]
[394560233,1763711438622,-508.9999999,0.00017,2]
[394560244,1763711438732,-16400.0,0.00017,2]
[394560247,1763711438749,-1756.3095099,0.00017,2]
[394560249,1763711438763,-338.19051775,0.00017,2]
[394560251,1763711438776,-1974.0,0.00017,2]
[394560253,1763711438788,-530.0000673,0.00017,2]
[394560255,1763711438800,-1906669.7867903,0.00017,2]
[394560258,1763711438812,-76965.14720819,0.00017,2]
[394560262,1763711438852,-6681.7611304,0.00016873,2]
[394560264,1763711438864,-1303.15793029,0.00016873,2]
[394560267,1763711438876,-339.45663581,0.00016873,2]
[394560269,1763711438888,-1450.76169632,0.00016873,2]
[394560271,1763711438900,-1998.3460037,0.00016873,2]
[394560275,1763711438926,-250509.63330026,0.00016873,2]
[394560277,1763711438938,-330.85083,0.00016873,2]
[394560279,1763711438949,-253.98,0.00016873,2]
[394560281,1763711438961,-826.07525,0.00016873,2]
[394560283,1763711438972,-3038.43606059,0.00016873,2]
[394560285,1763711438984,-1887.99999,0.00016873,2]
[394560294,1763711439062,-1290.963617,0.00016873,2]
[394560381,1763711439853,-2490.0,0.00016873,2]
[394560382,1763711439867,-40952.60380031,0.00016873,2]
[394560383,1763711439880,-8426.736,0.00016873,2]
[394560384,1763711439893,-1645.66692017,0.00016873,2]
[394560385,1763711439907,-537.19285642,0.00016873,2]
[394560391,1763711440024,-6256.78856739,0.00016873,2]
[394560393,1763711440038,-1347.75951044,0.00016873,2]
[394560395,1763711440051,-8215.0,0.00016873,2]
[394560397,1763711440064,-591.566251,0.00016873,2]
[394560399,1763711440076,-4180.3,0.00016873,2]
[394560411,1763711440180,-2450.03616794,0.00016873,2]
[394560413,1763711440192,-1316.58919444,0.00016873,2]
[394560425,1763711440305,-4376.75946436,0.00016873,2]
[394560427,1763711440318,-1100.00001,0.00016873,2]
[394560429,1763711440329,-725.91197457,0.00016873,2]
[394560438,1763711440406,-478.687,0.00016873,2]
[394560440,1763711440418,-1500.0,0.00016873,2]
[394560792,1763711443846,-283.02662413,0.00016873,2]
[394560798,1763711443858,-17371.64086931,0.00016873,2]
[394560803,1763711443869,-27150.0,0.00016873,2]
[394560878,1763711444239,-82665.0,0.00016873,2]
[394560880,1763711444254,-457.596,0.00016873,2]
[394560994,1763711445265,-1970.54264339,0.00016873,2]
[394560997,1763711445278,-10591.75770243,0.00016873,2]
[394560999,1763711445290,-11286.06694523,0.00016873,2]
[394561001,1763711445302,-544.12735879,0.00016873,2]
[394561011,1763711445385,-436.95620074,0.00016873,2]
[394561013,1763711445399,-346.51094594,0.00016873,2]
[394561015,1763711445410,-54985.41048,0.00016873,2]
[394561017,1763711445421,-839.54863638,0.00016873,2]
[394561089,1763711445820,-5175.778395,0.00016873,2]
[394561091,1763711445835,-1254.49405122,0.00016873,2]
[394561093,1763711445847,-4054.3821137,0.00016873,2]
[394561096,1763711445858,-643.0000012,0.00016873,2]
[394561099,1763711445869,-1245.6875,0.00016873,2]
[394561110,1763711445946,-2784.2671,0.00016873,2]
[394561112,1763711445958,-2867.78893253,0.00016873,2]
[394561114,1763711445969,-391.32871085,0.00016873,2]
[394561116,1763711445980,-299.96731511,0.00016873,2]
[394561119,1763711445994,-12029.14097338,0.00016873,2]
[394561121,1763711446010,-26466.30213926,0.00016873,2]
[394561123,1763711446020,-3496.12766008,0.00017,2]
[394561125,1763711446031,-4324.31919412,0.00017,2]
[394561148,1763711446373,-89804.85504653,0.00017,2]
[394561150,1763711446384,-279.20903523,0.00017,2]
[394561211,1763711447572,-341.395,0.00017,2]
[394561213,1763711447583,-5346.0,0.00017,2]
[394561288,1763711448360,-2477.47500011,0.000167,2]
[394561290,1763711448372,-409.3595,0.000167,2]
[394561292,1763711448385,-325.0,0.000167,2]
[394561367,1763711449518,2706.84999999,0.00015887,2]
[394561426,1763711484143,160.0,0.00016,2]
[394561427,1763711484234,278.0273,0.00016022,2]
[394561428,1763711485012,160.0,0.00016,2]
[394561429,1763711485950,160.0,0.00016,2]
[394561430,1763711514979,1852.42,0.00016025,2]
[394561431,1763711535340,500.0,0.00017,30]
[394561432,1763711535684,500.0,0.00017,30]
[394561433,1763711535739,500.0,0.00017,30]
[394561434,1763711536095,500.0,0.00017,30]
[394561435,1763711536393,500.0,0.00017,30]
[394561436,1763711536508,500.0,0.000165,30]
[394561437,1763711536570,500.0,0.000165,30]
[394561438,1763711536763,500.0,0.000165,30]
[394561439,1763711536827,500.0,0.000165,30]
[394561440,1763711545748,500.0,0.00017,30]
[394561441,1763711546051,500.0,0.00017,30]
[394561442,1763711546367,500.0,0.00017,30]
[394561443,1763711546676,500.0,0.000165,30]
[394561444,1763711547011,500.0,0.000165,30]
[394561445,1763711547329,500.0,0.000165,30]
[394561446,1763711549843,373.0494081,0.00017,30]